Cogmind - Beta 10.1 @@@ ROGUE MODE // 2020.10.24 @ 11:18:55 Player: Stryker Result: Self-destructed Performance ------------- Evolutions (6) 3000 Regions Visited (22) 4400 Robots Destroyed (317) 1585 Value Destroyed (11225) 11225 Prototype IDs (23) 460 Alien Tech Used (0) 0 Bonus (1806) 1806 TOTAL SCORE: 22476 Bonus ------- High Alert Combat Kills 874 Follower Combat Kills 1668 Network Hubs Disabled 200 Met Imprinter 300 MAIN.C Attacked Warlord 500 Warlord Defense Kill 1454 Built Enhanced Grunts 300 Met R17 at Cetus 500 Friendly Fire -3990 Cogmind --------- Core Integrity 916/1150 Matter 261/300 Energy 170/170 System Corruption 15% Temperature Cool (0) Movement Rolling (120) Ox3 Location -4/Factory Parts ------- > --- POWER (1) -------- Micro Fission Core > --- PROPULSION (4) --- Centrium Heavy Treads Centrium Wheel Centrium Wheel > --- UTILITY (11) ----- High-capacity Storage Unit High-capacity Storage Unit High-capacity Storage Unit Experimental Signal Interpreter Improved Terrain Scan Processor Improved Core Analyzer Centrium Medium Armor Plating Centrium Medium Armor Plating Improved Focal Shield > --- WEAPON (3) ------- KE Penetrator Phasing Sabre > --- INVENTORY (28) --- Light Antimatter Reactor Heavy Treads Centrium Heavy Treads Centrium Wheel Centrium Wheel Centrium Wheel Improved Cooling System Energy Well (500) High-capacity Matter Pod (200) Long-range Sensor Array Advanced Terrain Scanner Matter Filter Improved Weapon Cycler Medium Regenerative Plating Improved Focal Shield Thermal Defense Suite Hacking Drone Bay (1/1) HERF Cannon KE Penetrator Improved KE Penetrator Improved KE Penetrator Improved KE Penetrator Improved KE Penetrator Improved KE Penetrator Heavy Shock Bomb Launcher Neutron Missile Launcher Peak State ------------ > --- POWER ------------ Quantum Reactor > --- PROPULSION ------- Centrium Heavy Treads Centrium Heavy Treads > --- UTILITY ---------- High-capacity Storage Unit High-capacity Storage Unit High-capacity Storage Unit Experimental Signal Interpreter Improved Terrain Scan Processor Advanced Target Analyzer Improved Core Analyzer Centrium Medium Armor Plating Centrium Medium Armor Plating Medium Regenerative Plating Thermal Defense Suite > --- WEAPON ----------- KE Penetrator Hypervelocity Coil Gun Improved KE Penetrator > --- INVENTORY -------- Cooled Deuterium Engine Heavy Treads Centrium Heavy Treads Improved Cooling System Energy Well High-capacity Matter Pod Long-range Sensor Array Advanced Terrain Scanner Matter Filter Improved Weapon Cycler Centrium Medium Armor Plating Medium Insulated Plating Improved Focal Shield Makeshift System Restoration Module Hacking Drone Bay Dispersion Rifle Dispersion Rifle HERF Cannon KE Penetrator KE Penetrator Improved KE Penetrator Improved KE Penetrator Improved KE Penetrator Improved KE Penetrator Heavy Shock Bomb Launcher Phasing Sabre [Rating: 138] Favorites ----------- Power Cooled Deuterium Engine Engine Cooled Deuterium Engine Power Core Micro Fission Core Reactor Quantum Reactor Propulsion Light Treads Treads Light Treads Leg Aluminum Leg Wheel Compact Wheel Utility High-capacity Storage Unit Device Makeshift Sensor Array Storage High-capacity Storage Unit Processor Advanced Signal Interpreter Hackware Hacking Suite Protection Medium Regenerative Plating Weapon Tesla Rifle Energy Gun Tesla Rifle Energy Cannon Improved EM Pulse Cannon Ballistic Gun Improved Heavy Machine Gun Ballistic Cannon Gauss Cannon Launcher Long-range Missile Launcher Slashing Weapon Chainsword Build | -11 -10 -9 -9 -9 -8 -8 -7 -7 -7 -7 -6 -6 -6 -6 -6 -6 -5 -5 -5 -5 -4 -4 ------- Run | Scr Mat Mat Min Exi Min Mat Fac Low Low Zio Pro Fac Ext Cet Arc Hub Fac Upp Upp War Pro Fac Slots Evolved 12 | . . 2 . . . 2 2 . . . . 2 . . . . 2 . . . . 2 Power . | . . . . . . . . . . . . . . . . . . . . . . . Propulsion 2 | . . . . . . 1 1 . . . . . . . . . . . . . . . Utility 9 | . . 2 . . . 1 1 . . . . 1 . . . . 2 . . . . 2 Weapon 1 | . . . . . . . . . . . . 1 . . . . . . . . . . Parts Attached 390 | 3 12 16 2 1 4 22 39 10 13 3 7 43 51 13 . 9 8 12 15 14 10 83 Power 12 | . 1 3 . . 1 1 2 . . . . 1 . . . . . . . . . 3 Engine 10 | . 1 3 . . 1 1 2 . . . . 1 . . . . . . . . . 1 Core 1 | . . . . . . . . . . . . . . . . . . . . . . 1 Reactor 1 | . . . . . . . . . . . . . . . . . . . . . . 1 Propulsion 48 | 2 5 4 1 . 2 8 10 2 1 . 1 4 3 2 . . . . . . . 3 Treads 35 | 1 5 4 1 . 2 5 7 2 1 . 1 2 1 2 . . . . . . . 1 Leg . | . . . . . . . . . . . . . . . . . . . . . . . Wheel 13 | 1 . . . . . 3 3 . . . . 2 2 . . . . . . . . 2 Hover . | . . . . . . . . . . . . . . . . . . . . . . . Flight . | . . . . . . . . . . . . . . . . . . . . . . . Utility 223 | 1 4 3 . 1 . 6 10 6 8 2 6 26 34 5 . 8 5 9 14 10 6 59 Device 132 | . . . . . . 3 2 3 6 . 4 15 23 3 . 5 4 6 6 5 4 43 Storage 12 | 1 4 1 . 1 . 2 3 . . . . . . . . . . . . . . . Processor 10 | . . 2 . . . 1 1 1 . . . . . . . . 1 . . 1 . 3 Hackware 2 | . . . . . . . . . . . . 1 . . . . . . . . . 1 Protection 67 | . . . . . . . 4 2 2 2 2 10 11 2 . 3 . 3 8 4 2 12 Artifact . | . . . . . . . . . . . . . . . . . . . . . . . Weapon 107 | . 2 6 1 . 1 7 17 2 4 1 . 12 14 6 . 1 3 3 1 4 4 18 Energy Gun 25 | . . 3 . . . 2 5 1 1 . . 2 4 1 . 1 . 1 1 . . 3 Energy Cannon 13 | . . . . . . 1 5 . . . . 4 1 . . . . . . . 1 1 Ballistic Gun 37 | . 2 3 1 . 1 3 2 . 1 . . 1 5 3 . . 2 1 . 2 2 8 Ballistic Cannon 5 | . . . . . . 1 . . . 1 . 1 2 . . . . . . . . . Launcher 10 | . . . . . . . 4 1 1 . . . 2 . . . . . . 1 . 1 Special Weapon . | . . . . . . . . . . . . . . . . . . . . . . . Impact Weapon . | . . . . . . . . . . . . . . . . . . . . . . . Slashing Weapon 17 | . . . . . . . 1 . 1 . . 4 . 2 . . 1 1 . 1 1 5 Piercing Weapon . | . . . . . . . . . . . . . . . . . . . . . . . Special Melee Weapon . | . . . . . . . . . . . . . . . . . . . . . . . Unidentified Prototypes 20 | . . 1 . . . 3 4 . . . . 1 1 5 . . 1 . . 2 . 2 Parts Lost 55 | . 3 5 . . 4 6 9 2 2 . . 8 3 . . . . . . 2 3 8 Power 5 | . . 1 . . 1 . . . . . . 1 . . . . . . . . . 2 Propulsion 15 | . 1 . . . 2 2 4 2 . . . 3 1 . . . . . . . . . Utility 8 | . . . . . . 1 1 . . . . . . . . . . . . 1 1 4 Weapon 27 | . 2 4 . . 1 3 4 . 2 . . 4 2 . . . . . . 1 2 2 Highest Loss Streak 5 | . 3 2 . . 2 2 5 2 1 . . 2 1 . . . . . . 2 3 3 Average Slot Usage (%) 93 | . 99 99 100 100 99 95 98 91 91 92 92 92 99 92 86 86 88 88 88 85 87 88 Engine 7 | . 14 11 11 11 11 8 7 7 7 7 7 6 6 6 6 6 5 5 5 5 5 1 Treads 16 | . 24 22 22 22 21 21 28 14 14 15 15 12 13 8 13 13 11 11 11 11 11 8 Wheel 3 | . 2 . . . . 5 1 7 7 7 7 7 12 9 . . . . . . . 2 Device 8 | . . . . . . 8 7 12 12 15 13 10 12 4 6 10 9 14 15 12 10 12 Storage 22 | . 28 28 33 33 33 27 23 23 23 23 23 20 20 20 20 20 17 17 17 17 17 15 Processor 9 | . . 14 11 11 11 5 7 8 7 7 7 6 6 6 6 6 11 11 11 11 11 18 Protection 4 | . . . . . . . 6 1 2 . 1 6 6 14 13 8 12 7 6 6 11 7 Energy Gun 5 | . 6 4 . . . 5 1 7 8 7 7 1 6 12 13 13 8 6 10 10 1 4 Energy Cannon 1 | . . . . . . 3 4 . . . . 3 4 . . . . . . . 3 1 Ballistic Gun 8 | . 21 17 22 22 22 8 6 . 1 . . 5 4 5 6 6 5 9 5 2 8 7 Slashing Weapon 1 | . . . . . . . . 6 4 7 . 2 . 1 . . 1 . . 2 . 1 Naked Turns . | . . . . . . . . . . . . . . . . . . . . . . . Heaviest Build 157 | 16 41 61 62 78 78 96 138 125 125 126 127 150 149 154 152 156 142 155 154 155 148 157 Greatest Support 160 | 20 40 46 46 43 43 60 80 40 40 28 28 42 32 160 160 160 160 160 160 160 160 160 Greatest Overweight (x) 9 | . 1 1 1 1 1 9 4 4 6 4 4 8 7 5 . . . . . . . 9 Average Overweight (x) 1 | . . . 1 1 1 3 1 3 4 4 4 3 4 3 . . . . . . . . Largest Inventory Capacity 28 | 8 16 22 22 24 24 24 28 28 28 28 28 28 28 28 28 28 28 28 28 28 28 28 Average Capacity 26 | 7 13 19 22 23 24 24 27 28 28 28 28 28 28 28 28 28 28 28 28 28 28 28 Most Carried 28 | 8 13 22 22 22 22 24 28 28 28 28 28 28 28 28 28 28 28 28 28 28 27 28 Average Carried 25 | 7 11 19 21 22 20 23 26 27 24 27 27 26 27 27 28 27 26 28 28 27 26 27 Final Capacity 28 | 8 16 22 22 24 24 24 28 28 28 28 28 28 28 28 28 28 28 28 28 28 28 28 Final Carried 28 | 8 13 22 22 22 21 24 28 26 28 28 28 28 28 28 28 28 28 28 28 25 27 28 Class Distribution -------------------- 45% | Hauler-Mutant 11% | Hauler-Assassin 10% | Hauler-Skirmisher 8% | Scavenger-Skirmisher 6% | Mutant 5% | Scavenger-Mutant 3% | Hauler-Tank Dominant Class ---------------- Mutant | -10/Materials Hauler-Mutant | -9/Materials Hauler-Mutant | -9/Mines Hauler-Mutant | -9/Exiles Hauler-Mutant | -8/Mines Hauler-Mutant | -8/Materials Hauler-Mutant | -7/Factory Hauler-Assassin | -7/Lower Caves Hauler-Assassin | -7/Lower Caves Hauler-Assassin | -7/Zion Hauler-Mutant | -6/Proximity Caves Hauler-Mutant | -6/Factory Hauler-Mutant | -6/Extension Commander-Tank | -6/Cetus Commander-Tank | -6/Archives Commander-Skirmisher | -6/Hub_04(d) Scavenger-Skirmisher | -5/Factory Hauler-Skirmisher | -5/Upper Caves Scavenger-Skirmisher | -5/Upper Caves Scavenger-Mutant | -5/Warlord Hauler-Skirmisher | -4/Proximity Caves Hauler-Skirmisher | -4/Factory Resources | -11 -10 -9 -9 -9 -8 -8 -7 -7 -7 -7 -6 -6 -6 -6 -6 -6 -5 -5 -5 -5 -4 -4 ----------- Run | Scr Mat Mat Min Exi Min Mat Fac Low Low Zio Pro Fac Ext Cet Arc Hub Fac Upp Upp War Pro Fac Matter Collected 7842 | 242 496 519 163 . 338 431 731 125 144 . 106 699 732 198 24 49 104 305 178 327 206 1725 Remotely . | . . . . . . . . . . . . . . . . . . . . . . . Salvage Created 15238 | 78 581 1312 414 . 462 1378 2477 186 324 . 49 1762 715 430 . 683 335 190 436 301 170 2955 Parts 686 | 6 35 87 27 . 26 55 119 4 10 . 3 58 34 24 . 31 9 11 19 9 6 113 Haulers Intercepted 19 | . 2 3 . . . 4 5 . . . . 2 . . . . 2 . . . . 1 Recyclers Shooed 9 | . 2 2 . . . . 1 . . . . 1 2 . . . . . . . . 1 Parts Field Recycled . | . . . . . . . . . . . . . . . . . . . . . . . Retrieved Matter . | . . . . . . . . . . . . . . . . . . . . . . . Parts Self-Destructed 61 | . . . . . . . . 1 5 3 4 . . . . . . 9 16 22 1 . Prevented 22 | . . . . . . . . 3 4 . . . . . . . . 1 3 6 5 . Kills | -11 -10 -9 -9 -9 -8 -8 -7 -7 -7 -7 -6 -6 -6 -6 -6 -6 -5 -5 -5 -5 -4 -4 ------- Run | Scr Mat Mat Min Exi Min Mat Fac Low Low Zio Pro Fac Ext Cet Arc Hub Fac Upp Upp War Pro Fac Combat Hostiles Destroyed 236 | . 12 25 11 . 12 25 39 3 8 . 1 16 8 7 . 1 1 2 9 17 2 37 Guns 150 | . 12 24 11 . 12 16 7 1 1 . . 6 5 7 . 1 . 2 9 1 1 34 Cannons 26 | . . . . . . 8 4 . . . 1 10 2 . . . . . . . 1 . AOE 48 | . . . . . . 1 20 1 7 . . . 1 . . . . . . 15 . 3 Classes Destroyed 16 | 2 5 4 . . . 1 1 . . . . . . . . . . 1 . 2 . . Worker 14 | . 1 . . . . . 4 . . . . 1 1 . . 4 . . . . . 3 Builder 15 | . 1 . . . . . 2 . . . . 1 4 . . 1 . . . . . 6 Tunneler 2 | 1 . . . . . . . . . . . . . . . 1 . . . . . . Hauler 19 | . 2 3 . . . 4 5 . . . . 2 . . . . 2 . . . . 1 Recycler 21 | 1 1 3 . . . 1 4 . . . . 4 2 . . 2 . . . . . 3 Watcher 5 | . . 1 . . . . 1 . . . . 2 . . . . . . . . . 1 Swarmer 67 | . 5 8 3 . 4 6 10 . 4 . . 2 2 4 . . . . 5 7 . 7 Saboteur 1 | . . . . . . . . . . . . . . . . . . . . 1 . . Grunt 84 | . 7 9 5 . 6 9 16 2 2 . . 9 5 . . . . . 1 6 . 7 Brawler 4 | . . 1 . . 1 . 2 . . . . . . . . . . . . . . . Duelist 9 | . . 1 1 . 1 1 1 1 1 . 1 1 . . . . . . . . . . Protector 1 | . . . . . . . . . . . . . . . . . . . . 1 . . Sentry 33 | . . 6 2 . . 7 6 . . . . 1 1 . . 1 1 1 1 . . 6 Hunter 16 | . . . . . . 2 1 . 1 . . 2 . . . . . . 2 2 2 4 Programmer 17 | . . . . . . . 3 . . . . 1 . . . . . . . . . 13 Behemoth 1 | . . . . . . . . . . . . . . . . . . 1 . . . . Cetus Guard 3 | . . . . . . . . . . . . . . 3 . . . . . . . . Enhanced Grunt 1 | . . . . . . . . . . . . . . . . 1 . . . . . . Thug 1 | . . . . . . . . . . . . . . . . . . . . 1 . . Savage 1 | . . . . . . . . . . . . . . . . 1 . . . . . . Guerrilla 1 | . . . . . . . . . . . . . . . . 1 . . . . . . Best Kill Streak 19 | 1 7 5 3 . 4 4 19 3 5 . 1 4 6 3 . 7 1 1 4 16 1 17 Combat Bots Only 16 | . 6 5 3 . 4 4 14 3 5 . 1 3 2 3 . 1 1 1 4 16 1 9 Max Kills in Single Turn 9 | 1 2 2 1 . 1 2 3 1 3 . 1 2 3 2 . 9 1 1 2 3 1 3 Gunslinging 1 | . 1 1 . . . . . . . . . . . 1 . . . . 1 . . 1 Exploded 3 | . . . . . . 1 3 1 3 . . . 1 . . . . . . 3 . 3 Melee . | . . . . . . . . . . . . . . . . . . . . . . . Uniques/NPCs Destroyed 1 | . . . . . . . . . . . . . . 1 . . . . . . . . A7 (-6/Cetus) Combat | -11 -10 -9 -9 -9 -8 -8 -7 -7 -7 -7 -6 -6 -6 -6 -6 -6 -5 -5 -5 -5 -4 -4 -------- Run | Scr Mat Mat Min Exi Min Mat Fac Low Low Zio Pro Fac Ext Cet Arc Hub Fac Upp Upp War Pro Fac Damage Taken 16534 | . 744 1086 341 . 697 1384 2337 193 560 . 63 1657 857 63 10 96 173 647 527 266 843 3990 Core 1596 | . 129 128 40 . 76 125 227 . 50 . . 219 109 21 10 . . 66 20 57 85 234 Absorbed by Shields 40 | . . . . . . . . . . . . . . 40 . . . . . . . . Reduced by Siege Mode 241 | . . . . . . . . . . . . . . . . . . 43 7 . 66 125 Core Remaining (%) 65 | 100 48 . . . 39 77 . . . . 60 . . . . 57 . . . . 77 . Volleys Fired 692 | 4 51 79 21 . 44 79 103 8 14 . 1 60 32 12 6 3 9 18 12 14 14 108 Largest 3 | 2 2 2 2 . 2 2 2 2 2 . 2 3 3 3 3 3 3 3 3 3 3 3 Hottest 211 | 60 60 90 46 . 46 124 105 100 100 . 98 183 184 195 195 180 180 160 160 160 161 211 Shots Fired 1413 | 8 102 152 42 . 88 158 168 11 25 . 2 123 74 34 14 5 21 54 36 19 37 240 Gun 1138 | 8 102 152 42 . 88 114 78 6 21 . 1 51 39 34 14 5 21 54 36 8 28 236 Cannon 212 | . . . . . . 44 61 . . . 1 72 24 . . . . . . . 9 1 Launcher 63 | . . . . . . . 29 5 4 . . . 11 . . . . . . 11 . 3 Special . | . . . . . . . . . . . . . . . . . . . . . . . Kinetic 815 | 4 74 112 42 . 88 64 60 . 1 . 1 64 17 17 6 1 6 33 12 3 27 183 Thermal 258 | 4 28 . . . . 59 12 . . . . 16 22 17 8 1 6 18 12 2 . 53 Explosive 28 | . . . . . . . 6 . . . . . 11 . . . . . . 11 . . Electromagnetic 312 | . . 40 . . . 35 90 11 24 . 1 43 24 . . 3 9 3 12 3 10 4 Robot Hit Streak 43 | 2 12 25 17 . 21 23 43 14 8 . 4 15 28 13 4 6 21 18 27 6 11 36 Robot Miss Streak 5 | 3 3 3 1 . 2 3 2 1 5 . . 5 2 2 1 . 1 1 1 2 2 4 Penetration Max 3 | . . . . . . 1 . . . . . 1 1 1 . . . . . . . 3 Secondary Targets 19 | . 4 1 3 . 1 . . . . . . . . 2 . . . . 3 . . 5 Max Gunslinging Chain 1 | . 1 1 1 . 1 . . . . . . . . 1 . . . . 1 . . 1 Capacitor 23 | . . . . . . . . . . . . . . . . . . . . . . 23 Shots Hit Robots 1099 | 3 68 123 37 . 73 120 144 10 18 . 2 79 55 31 10 2 19 48 26 14 29 188 Core Hits 590 | 3 28 51 20 . 24 49 93 6 15 . 3 44 39 14 4 22 6 10 13 36 7 103 Critical Hits 81 | . . . 1 . 1 3 1 . . . . 2 1 4 3 2 . 4 . . 3 56 Critical Kills 30 | . . . 1 . 1 1 . . . . . 2 . 2 . 1 . . . . . 22 Critical Parts Destroyed 41 | . . . . . . 2 1 . . . . . 1 2 1 1 . 4 . . 3 26 Melee Attacks 45 | . . . . . . . 1 . 1 . . 9 . 10 . . 5 2 . 3 3 11 Impact . | . . . . . . . . . . . . . . . . . . . . . . . Slashing 45 | . . . . . . . 1 . 1 . . 9 . 10 . . 5 2 . 3 3 11 Piercing . | . . . . . . . . . . . . . . . . . . . . . . . Sneak Attacks 8 | . . . . . . . . . . . . 2 . 6 . . . . . . . . Combat Hostiles . | . . . . . . . . . . . . . . . . . . . . . . . Follow-up Attacks . | . . . . . . . . . . . . . . . . . . . . . . . Damage Inflicted 30222 | 50 797 1710 517 . 1044 2563 5202 302 739 . 229 2348 2251 1111 246 1434 460 1024 580 2841 442 4332 Guns 16022 | 50 796 1659 517 . 1015 1570 1278 84 217 . 21 678 675 508 246 72 460 1024 580 170 226 4176 Cannons 4571 | . . . . . . 861 1525 . . . 25 1381 563 . . . . . . . 216 . Explosions 8635 | . . 51 . . . 132 2383 218 522 . 183 . 1013 . . 1306 . . . 2671 . 156 Melee 892 | . . . . . . . . . . . . 289 . 603 . . . . . . . . Ramming 102 | . 1 . . . 29 . 16 . . . . . . . . 56 . . . . . . Kinetic 10312 | 38 578 1136 517 . 1015 814 870 . 24 . 25 696 284 243 148 24 160 445 84 69 226 2916 Thermal 5748 | 12 218 51 . . . 1028 607 . 235 . 183 295 500 265 98 25 143 512 219 97 . 1260 Explosive 4332 | . . . . . . . 814 . . . . . 904 . . . . . . 2614 . . Electromagnetic 8836 | . . 523 . . . 721 2895 302 480 . 21 1068 563 . . 1329 157 67 277 61 216 156 Impact . | . . . . . . . . . . . . . . . . . . . . . . . Slashing 892 | . . . . . . . . . . . . 289 . 603 . . . . . . . . Piercing . | . . . . . . . . . . . . . . . . . . . . . . . Highest Corruption 9 | . . . . . . 1 1 1 . . . 2 2 . . 1 . . . 6 . 9 Average Corruption 1 | . . . . . . 1 1 1 . . . 1 1 . . 1 . . . 3 . 4 Corruption Purged 9 | . . . . . . . . 1 . . . 1 3 . . . . . . . . 4 Effects 62 | . . . . . . 4 4 1 . . . 10 16 . . 2 . . . . . 25 Message Errors 18 | . . . . . . 3 2 . . . . 3 7 . . . . . . . . 3 Matter Fused 1 | . . . . . . . . . . . . . . . . . . . . . . 1 Heat Flow Errors 6 | . . . . . . . . . . . . 2 2 . . . . . . . . 2 Energy Discharges 9 | . . . . . . . 2 . . . . 2 3 . . . . . . . . 2 Parts Rejected 1 | . . . . . . . . . . . . . . . . . . . . . . 1 Data Loss (minor) 9 | . . . . . . . . 1 . . . 1 2 . . 2 . . . . . 3 Data Loss (major) 1 | . . . . . . . . . . . . . . . . . . . . . . 1 Misfires 1 | . . . . . . . . . . . . . . . . . . . . . . 1 Targeting Errors 11 | . . . . . . 1 . . . . . 2 1 . . . . . . . . 7 Weapon Failures 5 | . . . . . . . . . . . . . 1 . . . . . . . . 4 Overload Shots . | . . . . . . . . . . . . . . . . . . . . . . . Overflow Damage 348 | . . 4 . . 14 1 54 . 6 . . 27 49 52 . 26 . . . 82 29 4 Projectiles 72 | . . . . . . . 12 . . . . 27 4 . . . . . . . 29 . Explosions 205 | . . 4 . . . 1 42 . 6 . . . 45 . . 21 . . . 82 . 4 Melee 71 | . . . . . 14 . . . . . . . . 52 . 5 . . . . . . Knockbacks 6 | . . . . . 1 1 1 . . . . 3 . . . . . . . . . . Impact 2 | . . . . . 1 . 1 . . . . . . . . . . . . . . . Kinetic 4 | . . . . . . 1 . . . . . 3 . . . . . . . . . . Secondary . | . . . . . . . . . . . . . . . . . . . . . . . Self-Inflicted Damage 341 | . . . . . . 84 . . 39 . 63 . 49 . . 98 . . . . . 8 Shots 10 | . . . . . . 2 . . 3 . 1 . 2 . . 1 . . . . . 1 Rammed 6 | . 1 . . . 1 . 2 . . . . . . . . 2 . . . . . . Targets Rammed 7 | . 1 . . . 1 . 2 . . . . . . . . 3 . . . . . . Kicked . | . . . . . . . . . . . . . . . . . . . . . . . Crushed 1 | . . . . . . . . . . . . . . . . 1 . . . . . . Highest Temperature 458 | . 42 44 8 . 27 243 197 96 285 . 57 458 147 238 66 51 150 102 27 5 . 350 Average Temperature 72 | . 15 14 2 . 7 78 65 34 83 . 32 146 40 64 38 19 71 42 10 3 . 77 Received Heat Transfer 3230 | . 285 309 129 . 378 315 486 54 135 . . 264 297 8 . . 36 189 81 39 . 225 Effects 7 | . . . . . . . . . . . . 6 . . . . . . . . . 1 Shutdowns 2 | . . . . . . . . . . . . 1 . . . . . . . . . 1 Energy Bleed 1 | . . . . . . . . . . . . 1 . . . . . . . . . . Interference 4 | . . . . . . . . . . . . 4 . . . . . . . . . . Siege Activations 13 | . . . . . . . . . . . . . . 1 . . . 1 1 . 1 9 Total Turns 303 | . . . . . . . . . . . . . . 3 . . . 41 14 . 41 204 Longest Duration 56 | . . . . . . . . . . . . . . 3 . . . 41 14 . 41 56 Robots Corrupted 15 | . . 1 . . . . 8 1 . . . 1 1 . . 1 1 . . 1 . . Combat Hostiles 12 | . . 1 . . . . 8 1 . . . . . . . . 1 . . 1 . . Parts Fried 59 | . . 1 . . . 2 16 2 6 . . 13 1 1 . 8 3 . 1 3 2 . Impact Corruptions 2 | . . . . . 1 . . . . . . . . . . 1 . . . . . . Robots Melted . | . . . . . . . . . . . . . . . . . . . . . . . Combat Hostiles . | . . . . . . . . . . . . . . . . . . . . . . . Parts Melted 6 | . 1 . . . . . 1 . . . . . 2 . . . . . . . . 2 Heat Transferred 8414 | 25 500 50 . . . 1876 859 . 250 . 200 496 766 407 148 37 222 629 296 99 . 1554 Parts Sabotaged . | . . . . . . . . . . . . . . . . . . . . . . . Parts Stolen 1 | . . . . . . . . . 1 . . . . . . . . . . . . . Parts Stripped . | . . . . . . . . . . . . . . . . . . . . . . . Power Chain Reactions 15 | . . 1 . . . 2 7 . 2 . 1 . 1 . . . . . . 1 . . Missiles Intercepted . | . . . . . . . . . . . . . . . . . . . . . . . Alert | -11 -10 -9 -9 -9 -8 -8 -7 -7 -7 -7 -6 -6 -6 -6 -6 -6 -5 -5 -5 -5 -4 -4 ------- Run | Scr Mat Mat Min Exi Min Mat Fac Low Low Zio Pro Fac Ext Cet Arc Hub Fac Upp Upp War Pro Fac Peak Influence 909 | 10 909 663 499 . 155 375 775 . . . . 235 318 789 524 550 352 . . . . 774 Initial 320 | . 6 320 254 . . 29 135 . . . . 73 . 177 315 183 269 . . . . . Average 277 | 6 727 500 349 . 49 168 283 . . . . 108 134 491 471 218 316 . . . . 219 Maximum Alert Level 3 | . 3 2 2 . . 1 3 . . . . 1 1 3 2 2 1 . . . . 3 Low Security (%) 49 | 100 13 . . . 100 59 44 . . . . 96 69 5 . 57 . . . . . 71 Level 1 26 | . 2 24 75 . . 40 39 . . . . 3 30 31 27 41 100 . . . . 6 Level 2 13 | . 2 75 24 . . . 3 . . . . . . 37 72 . . . . . . 10 Level 3 9 | . 82 . . . . . 12 . . . . . . 24 . . . . . . . 11 Level 4 . | . . . . . . . . . . . . . . . . . . . . . . . Level 5 . | . . . . . . . . . . . . . . . . . . . . . . . High Security . | . . . . . . . . . . . . . . . . . . . . . . . Max Security . | . . . . . . . . . . . . . . . . . . . . . . . Squads Dispatched 39 | . 2 5 . . . 5 9 . . . . 3 1 . . . 1 . . . . 13 Investigation 7 | . 1 1 . . . 3 . . . . . . 1 . . . . . . . . 1 Extermination 9 | . . . . . . . 3 . . . . 1 . . . . . . . . . 5 Reinforcement 20 | . 1 4 . . . 2 6 . . . . 2 . . . . 1 . . . . 4 Assault . | . . . . . . . . . . . . . . . . . . . . . . . Garrison 3 | . . . . . . . . . . . . . . . . . . . . . . 3 Intercept . | . . . . . . . . . . . . . . . . . . . . . . . Construction Impeded 2 | . . . . . . . 1 . . . . . . . . . . . . . . 1 Haulers Reinforced 6 | . . . . . . . 2 . . . . 2 . . . . 1 . . . . 1 Stealth | -11 -10 -9 -9 -9 -8 -8 -7 -7 -7 -7 -6 -6 -6 -6 -6 -6 -5 -5 -5 -5 -4 -4 --------- Run | Scr Mat Mat Min Exi Min Mat Fac Low Low Zio Pro Fac Ext Cet Arc Hub Fac Upp Upp War Pro Fac Distress Signals 29 | . . 3 . . . 1 7 . . . . 2 3 2 . 2 . . . . . 9 Communications Jammed . | . . . . . . . . . . . . . . . . . . . . . . . Distress Signals . | . . . . . . . . . . . . . . . . . . . . . . . Times Spotted 393 | . 23 40 13 . 14 44 68 3 12 . 4 24 24 23 4 2 7 2 12 15 2 57 Peak Tracking Total 11 | . 7 5 3 . 4 7 7 3 5 . 4 4 4 5 1 1 5 1 4 10 2 11 Tactical Retreats 20 | . . 2 . . 3 2 3 . 2 . . 1 . . . . 1 . . . . 6 Traps | -11 -10 -9 -9 -9 -8 -8 -7 -7 -7 -7 -6 -6 -6 -6 -6 -6 -5 -5 -5 -5 -4 -4 ------- Run | Scr Mat Mat Min Exi Min Mat Fac Low Low Zio Pro Fac Ext Cet Arc Hub Fac Upp Upp War Pro Fac Traps Triggered 16 | . 2 3 . . . 2 3 . . . . 2 1 . . 1 . . . . . 2 Indirectly . | . . . . . . . . . . . . . . . . . . . . . . . Trap Hack Attempts . | . . . . . . . . . . . . . . . . . . . . . . . Triggered . | . . . . . . . . . . . . . . . . . . . . . . . Disarmed . | . . . . . . . . . . . . . . . . . . . . . . . Reprogrammed . | . . . . . . . . . . . . . . . . . . . . . . . Reused . | . . . . . . . . . . . . . . . . . . . . . . . Traps Extracted . | . . . . . . . . . . . . . . . . . . . . . . . Installed . | . . . . . . . . . . . . . . . . . . . . . . . Triggered 5 | . . . . . . . . 1 . . . . . . . . . . 1 2 1 . Machines | -11 -10 -9 -9 -9 -8 -8 -7 -7 -7 -7 -6 -6 -6 -6 -6 -6 -5 -5 -5 -5 -4 -4 ---------- Run | Scr Mat Mat Min Exi Min Mat Fac Low Low Zio Pro Fac Ext Cet Arc Hub Fac Upp Upp War Pro Fac Machines Disabled 34 | . 2 1 . . 1 2 6 . . . . 2 1 1 2 8 1 . . 2 . 5 Max in Single Turn 8 | . 1 1 . . 1 2 2 . . . . 1 1 1 1 8 1 . . 2 . 2 Garrison Access 5 | . . . . . . . 1 . . . . 3 . . . . 1 . . . . . Network Hub 1 | . . . . . . . . . . . . . . . . 1 . . . . . . Machines Sabotaged . | . . . . . . . . . . . . . . . . . . . . . . . Garrisons Compromised . | . . . . . . . . . . . . . . . . . . . . . . . Overloaded Fab Kills . | . . . . . . . . . . . . . . . . . . . . . . . Fab Network Shutdowns . | . . . . . . . . . . . . . . . . . . . . . . . Hacking | -11 -10 -9 -9 -9 -8 -8 -7 -7 -7 -7 -6 -6 -6 -6 -6 -6 -5 -5 -5 -5 -4 -4 --------- Run | Scr Mat Mat Min Exi Min Mat Fac Low Low Zio Pro Fac Ext Cet Arc Hub Fac Upp Upp War Pro Fac Machines Accessed 42 | . 3 4 1 4 . 4 8 . 2 . . 4 . 2 1 . 2 . . 5 . 2 Terminals 20 | . 2 4 . . . 4 7 . . . . 1 . 2 . . . . . . . . Fabricators 1 | . . . . . . . . . . . . . . . . . . . . . . 1 Repair Stations 2 | . 1 . . . . . . . . . . . . . . . 1 . . . . . Recycling Units . | . . . . . . . . . . . . . . . . . . . . . . . Scanalyzers . | . . . . . . . . . . . . . . . . . . . . . . . Garrison Access 6 | . . . . . . . 1 . . . . 3 . . . . 1 . . . . 1 Total Hacks 103 | . 9 11 1 4 . 11 15 . 8 . . 8 6 5 1 . 3 . . 16 . 5 Successful 61 | . 7 4 1 4 . 4 6 . 8 . . 5 2 1 1 . 2 . . 16 . . Failed 42 | . 2 7 . . . 7 9 . . . . 3 4 4 . . 1 . . . . 5 Catastrophic 10 | . . 2 . . . 1 2 . . . . 1 2 . . . . . . . . 2 Database Lockouts . | . . . . . . . . . . . . . . . . . . . . . . . Manual 45 | . 4 10 . . . 10 10 . . . . 2 4 5 . . . . . . . . Terminals 54 | . 5 11 . . . 11 14 . . . . 2 6 5 . . . . . . . . Fabricators 4 | . . . . . . . . . . . . . . . . . . . . . . 4 Repair Stations 6 | . 4 . . . . . . . . . . . . . . . 2 . . . . . Recycling Units . | . . . . . . . . . . . . . . . . . . . . . . . Scanalyzers . | . . . . . . . . . . . . . . . . . . . . . . . Garrison Access 9 | . . . . . . . 1 . . . . 6 . . . . 1 . . . . 1 Terminal Hacks 40 | . 1 1 1 4 . 2 2 . 8 . . 1 2 1 1 . . . . 16 . . Record 29 | . . . . 4 . . . . 7 . . . . 1 1 . . . . 16 . . Prototype ID Bank 1 | . 1 . . . . . . . . . . . . . . . . . . . . . Open Door 2 | . . . 1 . . . . . 1 . . . . . . . . . . . . . Alert Level 2 | . . 1 . . . 1 . . . . . . . . . . . . . . . . Unreport Threat 4 | . . . . . . 1 1 . . . . 1 1 . . . . . . . . . Locate Traps 1 | . . . . . . . . . . . . . 1 . . . . . . . . . Recall Extermination 1 | . . . . . . . 1 . . . . . . . . . . . . . . . Fabricator Hacks . | . . . . . . . . . . . . . . . . . . . . . . . Repair Station Hacks 5 | . 4 . . . . . . . . . . . . . . . 1 . . . . . Scan Component 3 | . 2 . . . . . . . . . . . . . . . 1 . . . . . Repair 2 | . 2 . . . . . . . . . . . . . . . . . . . . . Recycling Unit Hacks . | . . . . . . . . . . . . . . . . . . . . . . . Scanalyzer . | . . . . . . . . . . . . . . . . . . . . . . . Garrison Access Hacks 5 | . . . . . . . 1 . . . . 3 . . . . 1 . . . . . Seal Access 5 | . . . . . . . 1 . . . . 3 . . . . 1 . . . . . Unauthorized Hacks 11 | . 2 3 . . . 2 3 . . . . 1 . . . . . . . . . . Terminals 11 | . 2 3 . . . 2 3 . . . . 1 . . . . . . . . . . Track 1 | . . 1 . . . . . . . . . . . . . . . . . . . . Assimilate 2 | . . . . . . . 1 . . . . 1 . . . . . . . . . . Botnet 8 | . 2 2 . . . 2 2 . . . . . . . . . . . . . . . Fabricators . | . . . . . . . . . . . . . . . . . . . . . . . Repair Stations . | . . . . . . . . . . . . . . . . . . . . . . . Recycling Units . | . . . . . . . . . . . . . . . . . . . . . . . Scanalyzers . | . . . . . . . . . . . . . . . . . . . . . . . Garrison Access . | . . . . . . . . . . . . . . . . . . . . . . . Data Cores Recovered . | . . . . . . . . . . . . . . . . . . . . . . . Used . | . . . . . . . . . . . . . . . . . . . . . . . Hacking Detections 25 | . 3 4 . . . 4 7 . . . . 1 1 2 . . 1 . . . . 2 Full Trace Events 3 | . . 1 . . . 1 . . . . . . 1 . . . . . . . . . Feedback Events . | . . . . . . . . . . . . . . . . . . . . . . . Feedback Blocked . | . . . . . . . . . . . . . . . . . . . . . . . Robot Schematics Acquired . | . . . . . . . . . . . . . . . . . . . . . . . Robots Built . | . . . . . . . . . . . . . . . . . . . . . . . Matter . | . . . . . . . . . . . . . . . . . . . . . . . Time . | . . . . . . . . . . . . . . . . . . . . . . . Total Robot Build Rating . | . . . . . . . . . . . . . . . . . . . . . . . Part Schematics Acquired . | . . . . . . . . . . . . . . . . . . . . . . . Parts Built . | . . . . . . . . . . . . . . . . . . . . . . . Matter . | . . . . . . . . . . . . . . . . . . . . . . . Time . | . . . . . . . . . . . . . . . . . . . . . . . Total Part Build Rating . | . . . . . . . . . . . . . . . . . . . . . . . Parts Repaired 2 | . 2 . . . . . . . . . . . . . . . . . . . . . Time 52 | . 52 . . . . . . . . . . . . . . . . . . . . . Parts Recycled . | . . . . . . . . . . . . . . . . . . . . . . . Recycled Matter . | . . . . . . . . . . . . . . . . . . . . . . . Retrieved Matter . | . . . . . . . . . . . . . . . . . . . . . . . Retrieved Components . | . . . . . . . . . . . . . . . . . . . . . . . Parts Scanalyzed . | . . . . . . . . . . . . . . . . . . . . . . . Part Schematics Acquired . | . . . . . . . . . . . . . . . . . . . . . . . Parts Damaged . | . . . . . . . . . . . . . . . . . . . . . . . Bothacking | -11 -10 -9 -9 -9 -8 -8 -7 -7 -7 -7 -6 -6 -6 -6 -6 -6 -5 -5 -5 -5 -4 -4 ------------ Run | Scr Mat Mat Min Exi Min Mat Fac Low Low Zio Pro Fac Ext Cet Arc Hub Fac Upp Upp War Pro Fac Used RIF Installer . | . . . . . . . . . . . . . . . . . . . . . . . Robots Hacked . | . . . . . . . . . . . . . . . . . . . . . . . Non-combat . | . . . . . . . . . . . . . . . . . . . . . . . Combat . | . . . . . . . . . . . . . . . . . . . . . . . Robot Hacks Applied . | . . . . . . . . . . . . . . . . . . . . . . . Relay Couplers Released . | . . . . . . . . . . . . . . . . . . . . . . . Robots Rewired 9 | . . . . . . . . . . . . . 9 . . . . . . . . . Allies Hacked . | . . . . . . . . . . . . . . . . . . . . . . . Hacks Repelled . | . . . . . . . . . . . . . . . . . . . . . . . Allies | -11 -10 -9 -9 -9 -8 -8 -7 -7 -7 -7 -6 -6 -6 -6 -6 -6 -5 -5 -5 -5 -4 -4 -------- Run | Scr Mat Mat Min Exi Min Mat Fac Low Low Zio Pro Fac Ext Cet Arc Hub Fac Upp Upp War Pro Fac Total Allies 33 | . . . . . . . 4 . . 9 . . 15 5 . . . . . . . . Largest Group 10 | . . . . . . . 3 . . 9 9 5 8 10 7 6 3 . . . . . Highest-Rated Group 742 | . . . . . . . 93 . . 228 228 147 341 742 448 399 258 . . . . . Highest-Rated Ally 156 | . . . . . . . 31 . . 37 37 37 156 156 94 89 88 . . . . . Total Orders 18 | . . . . . . 2 . . . . . 5 6 . . 3 . . . . . 2 STAY 1 | . . . . . . . . . . . . . 1 . . . . . . . . . FOLLOW 1 | . . . . . . . . . . . . . 1 . . . . . . . . . EXPLORE 2 | . . . . . . 2 . . . . . . . . . . . . . . . . RETURN 14 | . . . . . . . . . . . . 5 4 . . 3 . . . . . 2 Ally Attacks 305 | . . . . . . . 15 . . . 33 3 146 79 26 2 1 . . . . . Total Damage 6399 | . . . . . . . 305 . . . 621 14 2418 2097 820 88 36 . . . . . Kills 50 | . . . . . . . 3 . . . 5 . 19 16 6 1 . . . . . . Allies Corrupted 1 | . . . . . . . . . . . . . . . . 1 . . . . . . Allies Melted . | . . . . . . . . . . . . . . . . . . . . . . . Intel | -11 -10 -9 -9 -9 -8 -8 -7 -7 -7 -7 -6 -6 -6 -6 -6 -6 -5 -5 -5 -5 -4 -4 ------- Run | Scr Mat Mat Min Exi Min Mat Fac Low Low Zio Pro Fac Ext Cet Arc Hub Fac Upp Upp War Pro Fac Robot Analysis Total . | . . . . . . . . . . . . . . . . . . . . . . . Derelict Logs Recovered 7 | . . . 1 . . . . 1 . 3 . . . . . . . . 1 . 1 . Drone Launches 17 | . . . . . . 2 . . . . . 5 4 1 . 3 . . . . . 2 Drone Recoveries 15 | . . . . . . . . . . . . 5 4 1 . 3 . . . . . 2 Exploration | -11 -10 -9 -9 -9 -8 -8 -7 -7 -7 -7 -6 -6 -6 -6 -6 -6 -5 -5 -5 -5 -4 -4 ------------- Run | Scr Mat Mat Min Exi Min Mat Fac Low Low Zio Pro Fac Ext Cet Arc Hub Fac Upp Upp War Pro Fac Turns Passed 22750 | 59 838 1467 803 1026 1063 1124 2466 618 675 1015 528 1303 1344 521 118 283 350 1421 1643 1237 825 2023 Spaces Moved 11172 | 39 386 627 399 570 513 495 1165 365 388 709 325 634 759 250 54 142 185 569 676 679 366 877 Core . | . . . . . . . . . . . . . . . . . . . . . . . Treads 7167 | . 258 627 399 570 513 226 1025 19 6 . . 75 . 62 54 142 185 569 676 679 366 716 Legs 7 | 7 . . . . . . . . . . . . . . . . . . . . . . Wheels 3998 | 32 128 . . . . 269 140 346 382 709 325 559 759 188 . . . . . . . 161 Hover . | . . . . . . . . . . . . . . . . . . . . . . . Flight . | . . . . . . . . . . . . . . . . . . . . . . . Fastest Speed 100 | 100 100 160 180 180 180 120 120 140 140 140 140 130 130 140 160 160 160 160 160 160 160 130 Average Speed 158 | 103 148 179 180 180 180 157 175 144 141 140 140 147 137 146 160 160 160 160 160 160 160 155 Slowest Speed 280 | 120 180 180 180 180 180 205 183 220 280 140 140 212 170 180 160 160 160 160 160 160 160 180 Overloaded Moves . | . . . . . . . . . . . . . . . . . . . . . . . Propulsion Burnouts . | . . . . . . . . . . . . . . . . . . . . . . . Robots Hopped . | . . . . . . . . . . . . . . . . . . . . . . . Cave-ins Triggered 1 | . . . . . . . . . . . . . . . . . . . . . . 1 Exploration Rate (%) 58 | 3 66 54 75 91 97 75 38 64 63 81 56 17 88 71 73 17 8 70 55 78 69 27 Regions Visited 22 Branch Regions 15 Pre-discovered Areas 7 | . . . 2 . . . . . 3 1 . . . . . . . . . 1 . . Known Exits Taken 15 | . . . . . . . 1 1 1 1 1 1 1 1 1 1 1 1 1 1 1 . Unknown Exits Taken 7 | 1 1 1 1 1 1 1 . . . . . . . . . . . . . . . . Scrap Searched 18 | . . . 1 . 1 . . 1 2 1 2 . . . . . . 3 4 . 3 . Spaces Dug 50 | . . . . . . . 11 . 1 . . 5 9 . . . 5 2 . 3 3 11 Terrain Destroyed 483 | . . 2 . . . 5 58 . 10 . 6 13 54 2 1 172 5 2 2 85 3 63 Melee 31 | . . . . . . . 1 . 1 . . 5 . . . . 5 2 . 3 3 11 Projectile 40 | . . . . . . 2 . . . . . 8 3 2 1 1 . . 2 . . 21 AOE 412 | . . 2 . . . 3 57 . 9 . 6 . 51 . . 171 . . . 82 . 31 Terrain Rammed . | . . . . . . . . . . . . . . . . . . . . . . . Walls Destroyed . | . . . . . . . . . . . . . . . . . . . . . . . Machines Disabled . | . . . . . . . . . . . . . . . . . . . . . . . Actions | -11 -10 -9 -9 -9 -8 -8 -7 -7 -7 -7 -6 -6 -6 -6 -6 -6 -5 -5 -5 -5 -4 -4 --------- Run | Scr Mat Mat Min Exi Min Mat Fac Low Low Zio Pro Fac Ext Cet Arc Hub Fac Upp Upp War Pro Fac Total 14846 | 49 560 824 446 571 573 686 1420 443 480 731 395 869 991 376 74 188 214 1036 1205 803 569 1343 Wait 2129 | . 77 54 18 . 9 63 51 59 61 16 58 98 66 49 13 28 2 434 503 91 172 207 Move 11150 | 38 385 626 398 569 512 494 1164 364 387 708 324 633 758 249 53 141 184 568 675 678 365 877 Hop . | . . . . . . . . . . . . . . . . . . . . . . . Pick Up 192 | 2 19 29 2 . 3 15 32 1 4 2 2 18 7 17 1 2 3 . . . 5 28 Fast Attach 45 | 2 4 6 1 . . 3 6 . . . . 1 7 4 . . 1 . . 1 . 9 Attach 77 | 1 3 6 . . 4 10 13 3 3 . . 11 3 . . . 2 . . 4 3 11 Detach 22 | 1 . 1 . . . 4 4 1 . . . 1 2 1 . . 1 . . 2 . 4 Swap 268 | . 5 4 1 1 . 9 20 7 10 3 7 31 41 9 . 9 5 12 15 9 7 63 Drop 159 | 1 15 19 5 1 . 9 24 . . 2 3 7 15 25 1 2 2 2 . 1 . 25 Fire 692 | 4 51 79 21 . 44 79 103 8 14 . 1 60 32 12 6 3 9 18 12 14 14 108 Melee 45 | . . . . . . . 1 . 1 . . 9 . 10 . . 5 2 . 3 3 11 Ram . | . . . . . . . . . . . . . . . . . . . . . . . Kick . | . . . . . . . . . . . . . . . . . . . . . . . Crush 7 | . 1 . . . 1 . 2 . . . . . . . . 3 . . . . . . Escape Stasis 8 | . . . . . . . . . . . . . 8 . . . . . . . . . Rewire 52 | . . . . . . . . . . . . . 52 . . . . . . . . . Trap . | . . . . . . . . . . . . . . . . . . . . . . . Miscellaneous . | . . . . . . . . . . . . . . . . . . . . . . . Route ------- -11/Scrapyard -10/Materials (discovered 2 exits: *Mat x2) -9/Materials (discovered 3 exits: *Mat x2 / *Min) -9/Mines (discovered 3 exits: *Mat / *Exi / *Zio) -9/Exiles -8/Mines (discovered 2 exits: *Mat x2) -8/Materials (discovered 2 exits: *Fac x2) -7/Factory (discovered 4 exits: *Fac x2 / [*Sto] / *Low) -7/Lower Caves -7/Lower Caves -7/Zion -6/Proximity Caves -6/Factory (discovered 5 exits: Fac x4 / *Ext) -6/Extension (discovered 3 exits: *Fac x2 / *Cet) -6/Cetus (discovered 3 exits: *Fac x2 / *Arc) -6/Archives -6/Hub_04(d) -5/Factory (discovered 2 exits: *Upp x2) -5/Upper Caves (discovered 2 exits: *Upp / *War) -5/Upper Caves -5/Warlord -4/Proximity Caves -4/Factory (discovered 1 exit: *Res) History --------- Turn | Location | Event 1 | -11/Scrapyard | Discovered new exit (range 3) 60 | -11/Scrapyard | Entered Materials 161 | -10/Materials | Discovered new exit (range 15) 309 | -10/Materials | Build established: Mutant 411 | -10/Materials | Discovered new exit (range 7) 529 | -10/Materials | Lost 3 parts (1n2w) 550 | -10/Materials | Core integrity fell below 50% 699 | -10/Materials | Repaired Lgt. Treads 726 | -10/Materials | Repaired Lgt. Treads 898 | -10/Materials | Entered another Materials area 898 | -9/Materials | Evolved 2 slots: Utility x2 1417 | -9/Materials | Discovered new exit (range 16) 1765 | -9/Materials | Build established: Hauler-Mutant 1813 | -9/Materials | Discovered new exit (range 14) 2349 | -9/Materials | Discovered new exit (range 9) 2365 | -9/Materials | Entered Mines 2366 | -9/Mines | Learned location of Storage (-7) 2531 | -9/Mines | Discovered new exit (range 13) 2769 | -9/Mines | Found the Drone Emporium 2782 | -9/Mines | Found Prototype Device 2853 | -9/Mines | A weapon hastily lodged in a ceiling crevice suddenly fell to the ground 2870 | -9/Mines | A Derelict revealed a hidden shortcut to a safe place 3080 | -9/Mines | Deemed a non-threat by the Exiles lab entrance 3159 | -9/Mines | Discovered new exit (range 5) 3168 | -9/Mines | Entered Exiles 3168 | -9/Exiles | Found Exiles lab abandoned 4179 | -9/Exiles | Discovered new exit (range 10) 4194 | -9/Exiles | Entered Mines 4317 | -8/Mines | Core integrity fell below 50% 4422 | -8/Mines | Discovered new exit (range 7) 5223 | -8/Mines | Discovered new exit (range 10) 5257 | -8/Mines | Entered Materials 5257 | -8/Materials | Evolved 2 slots: Propulsion x1, Utility x1 5259 | -8/Materials | Identified Decoy Drone Bay 5664 | -8/Materials | Discovered new exit (range 37) 6365 | -8/Materials | Discovered new exit (range 10) 6381 | -8/Materials | Entered Factory 6381 | -7/Factory | Evolved 2 slots: Propulsion x1, Utility x1 6520 | -7/Factory | Discovered new exit (range 10) 6596 | -7/Factory | Identified exit to Lower Caves 7030 | -7/Factory | Discovered new exit (range 15) 7149 | -7/Factory | Allied Derelicts emerged from ambush trap array 7335 | -7/Factory | Discovered new exit (range 6) 7815 | -7/Factory | Lost 5 parts (2n1u2w) 8556 | -7/Factory | Destroyed 14 combat bots 8593 | -7/Factory | Discovered new exit (range 12) 8847 | -7/Factory | Entered Lower Caves 9077 | -7/Lower Caves | Identified exit to Lower Caves 9322 | -7/Lower Caves | Build established: Hauler-Assassin 9465 | -7/Lower Caves | Entered another Lower Caves area 9474 | -7/Lower Caves | Lgt. Treads stolen by Master Thief 9700 | -7/Lower Caves | Encountered a Warlord checkpoint 10092 | -7/Lower Caves | Learned location of Extension (-6) 10092 | -7/Lower Caves | Learned Armory trap positions 10092 | -7/Lower Caves | Learned Research stockpile data 10092 | -7/Lower Caves | Learned Research garrison access intel 10126 | -7/Lower Caves | Discovered new exit (range 11) 10138 | -7/Lower Caves | Identified exit to Zion 10140 | -7/Lower Caves | Entered Zion 10280 | -7/Zion | Given the Hacking Drone Bay 10288 | -7/Zion | Found Prototype Device 10414 | -7/Zion | Gained Derelict followers 10591 | -7/Zion | Learned location of Armory (-4) 10688 | -7/Zion | Gained Derelict followers 10701 | -7/Zion | Learned 12 Factory zone layouts 10906 | -7/Zion | Learned Factory garrison access intel 11112 | -7/Zion | Discovered new exit (range 15) 11131 | -7/Zion | Identified exit to Proximity Caves 11155 | -7/Zion | Entered Proximity Caves 11155 | -6/Proximity Caves | Accompanied by 9 allies 11451 | -6/Proximity Caves | Build established: Hauler-Mutant 11659 | -6/Proximity Caves | Discovered new exit (range 10) 11670 | -6/Proximity Caves | Identified exit to Factory 11683 | -6/Proximity Caves | Entered Factory 11683 | -6/Factory | Accompanied by 5 allies 11683 | -6/Factory | Evolved 2 slots: Utility x1, Weapon x1 11685 | -6/Factory | Loaded intel: 4 garrison access locations 12101 | -6/Factory | Found Hvy. Reactive Plating 12143 | -6/Factory | Identified Hacking Drone Bay 12186 | -6/Factory | Discovered new exit (range 11) 12192 | -6/Factory | Identified exit to Factory 12985 | -6/Factory | Identified exit to Extension 12986 | -6/Factory | Entered Extension 13055 | -6/Extension | Rescued a captive Derelict 13072 | -6/Extension | Rescued a captive Derelict 13073 | -6/Extension | Rescued a captive Derelict 13301 | -6/Extension | Identified exit to Cetus 13758 | -6/Extension | Spotted B-75 Beast 13773 | -6/Extension | Spotted B-75 Beast 13776 | -6/Extension | Allies destroyed B-75 Beast 13790 | -6/Extension | Allies destroyed B-75 Beast 14146 | -6/Extension | Rescued A7 14237 | -6/Extension | Rescued a captive Derelict 14330 | -6/Extension | Entered Cetus 14330 | -6/Cetus | Accompanied by 7 allies (A7) 14335 | -6/Cetus | Acquired a Cetus Manufacturing Module code from A7 14349 | -6/Cetus | Spotted Cetus Guard 14349 | -6/Cetus | Spotted Cetus Guard 14353 | -6/Cetus | Spotted Cetus Guard 14356 | -6/Cetus | Spotted Cetus Guard 14360 | -6/Cetus | Destroyed Cetus Guard 14364 | -6/Cetus | Allies destroyed Cetus Guard 14370 | -6/Cetus | Destroyed Cetus Guard 14375 | -6/Cetus | Allies destroyed Cetus Guard 14448 | -6/Cetus | Started Cetus Manufacturing Module 14473 | -6/Cetus | Manufactured an Enhanced Grunt 14498 | -6/Cetus | Manufactured an Enhanced Grunt 14523 | -6/Cetus | Manufactured an Enhanced Grunt 14548 | -6/Cetus | Manufactured an Enhanced Grunt 14572 | -6/Cetus | Discovered new exit (range 16) 14573 | -6/Cetus | Manufactured an Enhanced Grunt 14618 | -6/Cetus | Found a strange terminal 14671 | -6/Cetus | Spotted Cetus Guard 14671 | -6/Cetus | Spotted Cetus Guard 14672 | -6/Cetus | Destroyed Cetus Guard 14674 | -6/Cetus | Spotted Cetus Guard 14676 | -6/Cetus | Spotted Cetus Guard 14685 | -6/Cetus | Allies destroyed Cetus Guard 14690 | -6/Cetus | Allies destroyed Cetus Guard 14692 | -6/Cetus | Allies destroyed Cetus Guard 14695 | -6/Cetus | Met Revision 17 14777 | -6/Cetus | Identified exit to Archives 14796 | -6/Cetus | Destroyed A7 14799 | -6/Cetus | Extracted ID and sensor layout for unrecognized location from A7's data core 14810 | -6/Cetus | Found Prototype Protection 14810 | -6/Cetus | Identified Med. Regenerative Plating 14851 | -6/Cetus | Entered Archives 14851 | -6/Archives | Accompanied by 7 allies 14926 | -6/Archives | Unable to access archive contents 14931 | -6/Archives | Discovered new exit (range 15) 14954 | -6/Archives | Identified exit to Hub_04(d) 14969 | -6/Archives | Entered Hub_04(d) 14969 | -6/Hub_04(d) | Accompanied by 6 allies 15112 | -6/Hub_04(d) | Discovered exit to Factory (range 15) 15250 | -6/Hub_04(d) | Network Hub disabled 15252 | -6/Hub_04(d) | Entered Factory 15252 | -5/Factory | Accompanied by 3 allies 15252 | -5/Factory | Evolved 2 slots: Utility x2 15253 | -5/Factory | Identified exit to Upper Caves 15570 | -5/Factory | Discovered exit to Upper Caves (range 16) 15590 | -5/Factory | Found Prototype Processor 15602 | -5/Factory | Entered Upper Caves 16063 | -5/Upper Caves | Attracted the attention of an 0b10 checkpoint 16229 | -5/Upper Caves | A Derelict revealed a hidden shortcut to "reach the base" 16288 | -5/Upper Caves | Spotted B-75 Beast 16332 | -5/Upper Caves | Destroyed B-75 Beast 16382 | -5/Upper Caves | Identified exit to Warlord 16651 | -5/Upper Caves | Build established: Hauler-Skirmisher 16978 | -5/Upper Caves | Discovered new exit (range 12) 16999 | -5/Upper Caves | Identified exit to Upper Caves 17023 | -5/Upper Caves | Entered another Upper Caves area 17363 | -5/Upper Caves | Build established: Scavenger-Skirmisher 17740 | -5/Upper Caves | Attracted the attention of an 0b10 checkpoint 18666 | -5/Upper Caves | Entered Warlord 18770 | -5/Warlord | System corruption cleaned by Quarantine Array 18852 | -5/Warlord | Identified Exp. Signal Interpreter 18949 | -5/Warlord | Build established: Scavenger-Mutant 19496 | -5/Warlord | Learned Research trap positions 19496 | -5/Warlord | Learned Quarantine trap positions 19496 | -5/Warlord | Learned Research stockpile data 19498 | -5/Warlord | Learned Quarantine security intel 19498 | -5/Warlord | Learned Research terminal intel 19600 | -5/Warlord | Warlord's base attacked by MAIN.C 19804 | -5/Warlord | Warlord forces counterattacked 19848 | -5/Warlord | Destroyed 16 combat bots 19892 | -5/Warlord | Discovered new exit (range 8) 19902 | -5/Warlord | Identified exit to Proximity Caves 19903 | -5/Warlord | Entered Proximity Caves 20200 | -4/Proximity Caves | Build established: Hauler-Mutant 20233 | -4/Proximity Caves | Lost 3 parts (1u2w) 20446 | -4/Proximity Caves | Learned 8 Research zone layouts 20531 | -4/Proximity Caves | Build established: Hauler-Skirmisher 20706 | -4/Proximity Caves | Discovered new exit (range 5) 20712 | -4/Proximity Caves | Identified exit to Factory 20728 | -4/Proximity Caves | Entered Factory 20728 | -4/Factory | Evolved 2 slots: Utility x2 20743 | -4/Factory | Found Quantum Capacitor 20914 | -4/Factory | Build established: Hauler-Assassin 21256 | -4/Factory | Discovered new exit (range 14) 21403 | -4/Factory | Identified exit to Research 21425 | -4/Factory | Found Prototype Hackware 21425 | -4/Factory | Identified Exp. System Shield 22097 | -4/Factory | Garrison activated, responded to threat 22235 | -4/Factory | Spotted B-86 Titan 22381 | -4/Factory | Destroyed 9 combat bots 22751 | -4/Factory | Crushed by falling debris 22751 | -4/Factory | System corruption reached 10% 22751 | -4/Factory | Self-destructed Last Messages --------------- 22636_ Triggered Hellfire Trap. 22636_ An explosion rips through the floor. 22640_ K-01 Serf collects debris. 22648_ System corrupted: Energy discharge (-40). 22658_ Mak. System Restoration Module purges 1% of system corruption (8%). 22661_ The unstable cave ceiling collapses. 22663_ System corrupted: FCS attempts to trigger KE Penetrator. 22663_ System corrupted: KE Penetrator misfires. 22663_ Slug penetrates K-01 Serf. 22663_ K-01 Serf suffers critical hit. 22663_ Destroyed Wheel. 22712_ System corrupted: Heat flow error (+272). 22751_ The unstable cave ceiling collapses. 22751_ Crushed by falling debris. 22751_ Mak. System Restoration Module destroyed. 22751_ System corrupted by crushing effect (+5). 22751_ KE Penetrator destroyed. 22751_ System corrupted by crushing effect (+1). 22751_ Adv. Target Analyzer destroyed. 22751_ System corrupted by crushing effect (+1). Map ----- +----------------------------------------------------+ | | | | | | | | | | | | | | | | | | | | | | | | | ??????????????????##?####???#####################? | | ????????????????#?#?#??#????# ###?#? | | ??????????????????#???#?#???# ###### | | ?????????????#??#???#?????### ## | | ??????????????#?#?????????#?# ## | | ??????????????##?#?#?##????## ## | | ??????????????#??????##????## ## | | ??????????##?#???????#???#??# ## """ | | ????????????????#?????#?#?### ## """ | | ??????????#???????#???###??## ## """ | | ???????????????#?#?????#####" ## """ | | ??????????#????#?????##?### #+#+####+########"#### | | ????????????????????#??###### | | ????????????????##??????#@### ########### | | ???????????????? ? ??? #?# #?#####?##? | | ?????????????# ??? ? #?# [ # ????? ? | | ?????????????#??? ? #?# # ? ?" | | ????????????????"" "" #?# #????" ?? G | | ????????????#?? "" "" #?# """" #? " ??" "" | | ?????????????#??""" """ # """" # ?? ? " | | ??????????????? """ """ ss# """" #??? "?"? | | ??????????????????? """ # ???"" +??"???"? ? | | ?????????????? ?? ? + ? "?"" #??"?"?? | | ????????????????? ? ? # ??"??" #??? ? ? | | ????????????????????? ???????"?" #? ????? | | ???????????????????? ? ??? ?? #? " " "??? | | ?????????????????????###### ???"??" ? ?????? ?? | | ????????????????????????##?? ???"??" [???????#??# | | ????????????????????????????? ??"??"??????#??????? | | ????????????????????????????????????????????#????? | | ??????????????????????????????????"???????##?????? | | ???????????????????????????????????? ????????????? | | ???????????????????????????????????????????????? | | ???????????????????????????????????????????????? | | ???????????????????????????????????????????????? | | ?????????????????????????????????????????????????? | | ?????????????????????????????????????????????????? | | ?????????????????????????????????????????????????? | +----------------------------------------------------+ Best States ------------- Heat Dissipation 75 Coolant Potential 65 Energy Generation 25 Energy Capacity 350 Matter Stores 300 Matter Capacity 300 Sight Range 16 Robot Scan Range 22 Terrain Scan Range 20 Terrain Scan Density 110 Armor Coverage 1350 Resistance: KI 30 Resistance: TH 20 Resistance: EM 20 Weapon Cycling 20 Evasion (%) 40 Targeting Accuracy 16 Target Analysis 8 Core Analysis 8 Recoil Reduction 4 Matter Filtering 30 Offensive Hacking 10 Item Schematics ----------------- None Robot Schematics ------------------ None Fabricated ------------ Nothing Alien Tech Used ----------------- None Achievements -------------- None Challenges ------------ None Game ------ Seed DeepMolecularProjector Manual? 0 Play Time 05:14:25 Cumulative 945.7 hours Start 2020.10.04 @ 08:43:14 End 2020.10.24 @ 11:18:55 Sessions 27 Manual Loads 0 Difficulty Rogue Special Mode None Game No. 268 Rogue 268 Adventurer 0 Explorer 0 Win Type - Total 32 Types 21/3/5/3/0/0/0/0/0 Lore% 75 Gallery% 86 Achievement% 72 Wizard Run 0 Options --------- ASCII 0 Keyboard 1 Movement Numpad Keybinds 0 Fullscreen 1 Font 24/Smallcaps Map View 76x50 Tactical HUD 1 Map Filters NONE Filters NONE Steam 1 RUN: f072f259-5cac-4e18-b0ea-e9f95e06f550